lending/lending_fUSD_20260104
["ID","MTS","AMOUNT","RATE_DAILY","PERIOD"]
[400404536,1767517069744,-151.0,0.00017788,2]
[400404537,1767517069773,-151.0,0.00017788,2]
[400404538,1767517069802,-151.0,0.00017788,2]
[400404539,1767517069831,-151.0,0.00017788,2]
[400404540,1767517069864,-151.0,0.00017788,2]
[400404541,1767517069896,-151.0,0.00017788,2]
[400404542,1767517069926,-151.0,0.00017788,2]
[400404543,1767517069955,-151.0,0.00017788,2]
[400404544,1767517069985,-151.0,0.00017788,2]
[400404545,1767517070018,-151.0,0.00017788,2]
[400404546,1767517070047,-151.0,0.00017788,2]
[400404547,1767517070075,-151.0,0.00017788,2]
[400404548,1767517070103,-151.0,0.00017788,2]
[400404549,1767517070132,-151.0,0.00017788,2]
[400404550,1767517070160,-151.0,0.00017788,2]
[400404551,1767517070189,-151.0,0.00017788,2]
[400404552,1767517070218,-151.0,0.00017788,2]
[400404553,1767517070246,-176.82454176,0.00017788,2]
[400404554,1767517070274,-300.0,0.00017796,2]
[400404555,1767517082532,1600.0,0.00025504,120]
[400404556,1767517084891,409.3837,0.00016999,2]
[400404557,1767517092039,-1600.0,0.00017003,2]
[400404558,1767517092068,-300.0,0.000174,2]
[400404559,1767517092096,-300.0,0.00017639,2]
[400404560,1767517092125,-1200.0,0.00017797,2]
[400404561,1767517092153,-300.0,0.00017797,2]
[400404562,1767517092181,-195.0,0.00017798,2]
[400404563,1767517092208,-300.0,0.00017798,2]
[400404564,1767517101146,-1200.0,0.00017797,2]
[400404565,1767517101175,-2500.0,0.00017798,2]
[400404566,1767517101204,-500.0,0.00017798,2]
[400404567,1767517101232,-500.0,0.00017798,2]
[400404568,1767517101261,-100.01,0.00017798,2]
[400404569,1767517104760,-779.34584,0.00017708,2]
[400404570,1767517104790,-399.99,0.00017798,2]
[400404571,1767517104820,-500.0,0.00017798,2]
[400404572,1767517104850,-500.0,0.00017798,2]
[400404573,1767517104883,-500.0,0.00017798,2]
[400404574,1767517104914,-550.0,0.00017798,2]
[400404575,1767517104946,-500.0,0.00017798,2]
[400404576,1767517104975,-500.0,0.00017798,2]
[400404577,1767517105004,-500.0,0.00017798,2]
[400404578,1767517105032,-195.0,0.00017799,2]
[400404579,1767517131635,-300.0,0.00017799,2]
[400404588,1767517159021,9400.01,0.00016977,2]
[400404589,1767517159044,5233.31823649,0.00016977,2]
[400404590,1767517159071,3863.43176351,0.00016977,2]
[400404591,1767517207491,150.18065412,0.000328,120]
[400404592,1767517213570,500.0,0.00016999,2]
[400404594,1767517260473,-300.0,0.00017798,2]
[400404595,1767517260500,-1200.0,0.00017798,2]
[400404596,1767517260526,-301.0,0.00017798,2]
[400404597,1767517260558,-18572.11457647,0.00017799,2]
[400404598,1767517260585,-300.0,0.00017799,2]
[400404599,1767517260615,-195.0,0.00017799,2]
[400404600,1767517260640,-242.01737876,0.00017799,2]
[400404601,1767517260665,-1900.68907832,0.00017799,2]
[400404602,1767517260690,-2672.17298913,0.00017799,2]
[400404603,1767517260715,-3990.02689146,0.00017799,2]
[400404604,1767517260739,-1246.95554892,0.00017799,2]
[400404605,1767517260763,-529.7799923,0.00017799,2]
[400404606,1767517260788,-235.54743958,0.000178,2]
[400404607,1767517260812,-227.61853446,0.000178,2]
[400404608,1767517260836,-195.0,0.00017803,2]
[400404609,1767517260861,-235.54743957,0.00017817,2]
[400404610,1767517260886,-550.0,0.00017829,2]
[400404611,1767517260911,-5146.91532,0.0001783,2]
[400404612,1767517260936,-235.54743957,0.00017833,2]
[400404613,1767517260963,-235.54743957,0.0001785,2]
[400404614,1767517260988,-235.54743957,0.00017867,2]
[400404615,1767517261013,-5146.91532,0.0001788,2]
[400404616,1767517261043,-235.54743957,0.00017883,2]
[400404617,1767517261069,-500.0,0.00017897,2]
[400404618,1767517261099,-500.0,0.00017897,2]
[400404619,1767517261126,-201.02709658,0.00017897,2]
[400404620,1767517261156,-500.0,0.00017897,2]
[400404621,1767517261184,-500.0,0.00017897,2]
[400404622,1767517261212,-500.0,0.00017897,2]
[400404623,1767517261241,-430.0,0.00017897,2]
[400404624,1767517261274,-500.0,0.00017897,2]
[400404625,1767517261302,-500.0,0.00017897,2]
[400404626,1767517261329,-500.0,0.00017897,2]
[400404627,1767517261355,-350.0,0.00017897,2]
[400404628,1767517261385,-500.0,0.00017897,2]
[400404629,1767517261414,-500.0,0.00017897,2]
[400404630,1767517261443,-500.0,0.00017897,2]
[400404631,1767517261470,-338.01401099,0.00017897,2]
[400404632,1767517261496,-500.0,0.00017897,2]
[400404633,1767517261530,-500.0,0.00017897,2]
[400404634,1767517261561,-500.0,0.00017897,2]
[400404635,1767517261591,-185.2071732,0.00017897,2]
[400404636,1767517261617,-500.0,0.00017898,2]
[400404637,1767517261642,-500.0,0.00017898,2]
[400404638,1767517261667,-506.74935627,0.00017898,2]
[400404639,1767517261692,-500.0,0.00017898,2]
[400404640,1767517261716,-500.0,0.00017898,2]
[400404641,1767517261742,-500.0,0.00017898,2]
[400404642,1767517261766,-543.11959034,0.00017898,2]
[400404643,1767517261791,-500.0,0.00017898,2]
[400404644,1767517261816,-500.0,0.00017898,2]
[400404645,1767517261841,-500.0,0.00017898,2]
[400404646,1767517261866,-500.0,0.00017898,2]
[400404647,1767517261890,-500.0,0.00017898,2]
[400404648,1767517261917,-500.0,0.00017898,2]
[400404649,1767517261942,-500.0,0.00017898,2]
[400404650,1767517261969,-500.0,0.00017899,2]
[400404651,1767517261997,-176.86408087,0.00017899,2]
[400404652,1767517262023,-346.29711645,0.00017899,2]
[400404653,1767517262049,-19843.18312551,0.000179,3]
[400404654,1767517262077,-235.54743957,0.000179,2]
[400404655,1767517262102,-58846.17750714,0.000179,2]
[400404656,1767517262129,-22340.66040738,0.000179,2]
[400404657,1767517262155,-535.02234908,0.000179,3]
[400404658,1767517262179,-500.0,0.000179,3]
[400404659,1767517262205,-163.33312598,0.000179,2]
[400404660,1767517262230,-22518.95292996,0.000179,2]
[400404661,1767517262256,-12427.90066643,0.000179,2]
[400404662,1767517262282,-5146.91531,0.0001793,2]
[400404663,1767517262309,-5146.91532,0.0001798,2]
[400404664,1767517262335,-677.69,0.00017989,2]
[400404665,1767517262361,-561.05811554,0.0001799,2]
[400404666,1767517262386,-561.05811554,0.0001799,2]
[400404667,1767517262415,-561.05811554,0.0001799,2]
[400404668,1767517262441,-151.0,0.00017997,2]
[400404669,1767517262469,-164.76026603,0.00017998,2]
[400404670,1767517262494,-500.0,0.00017999,2]
[400404671,1767517262520,-500.0,0.00017999,2]
[400404672,1767517262547,-500.0,0.00017999,2]
[400404673,1767517262576,-500.0,0.00017999,2]
[400404674,1767517262603,-500.0,0.00017999,2]
[400404675,1767517262629,-500.0,0.00017999,2]
[400404676,1767517262656,-509.11927335,0.00017999,2]
[400404677,1767517262684,-508.29640226,0.00017999,2]
[400404678,1767517262712,-504.56242102,0.00017999,2]
[400404679,1767517262737,-502.32348228,0.00017999,2]
[400404680,1767517262764,-394.66432293,0.00017999,2]
[400404681,1767517262790,-500.0,0.00017999,2]
[400404682,1767517262815,-500.0,0.00017999,2]
[400404683,1767517262841,-500.0,0.00017999,2]
[400404684,1767517263002,-500.0,0.00017999,2]
[400404685,1767517263035,-220.14349311,0.00017999,2]
[400404686,1767517263061,-500.0,0.00017999,2]
[400404687,1767517263088,-500.0,0.00017999,2]
[400404688,1767517263113,-500.0,0.00017999,2]
[400404689,1767517263139,-300.0,0.00017999,2]
[400404690,1767517263164,-510.59004479,0.00017999,2]
[400404691,1767517263191,-500.0,0.00017999,2]
[400404692,1767517263218,-500.0,0.00017999,2]
[400404693,1767517263246,-500.0,0.00017999,2]
[400404694,1767517263272,-500.0,0.00017999,2]
[400404695,1767517263302,-168.669511,0.00017999,2]
[400404696,1767517263328,-507.29963605,0.00017999,2]
[400404697,1767517263355,-300.0,0.00017999,2]
[400404698,1767517263380,-680.66565865,0.00017999,2]
[400404699,1767517263408,-500.0,0.00017999,2]
[400404700,1767517263436,-500.0,0.00017999,2]
[400404701,1767517263462,-500.0,0.00017999,2]
[400404702,1767517263489,-500.0,0.00017999,2]
[400404703,1767517263516,-500.0,0.00017999,2]
[400404704,1767517263545,-500.0,0.00017999,2]
[400404705,1767517263573,-500.0,0.00017999,2]
[400404706,1767517263601,-500.0,0.00017999,2]
[400404707,1767517263629,-500.0,0.00017999,2]
[400404708,1767517263657,-500.0,0.00017999,2]
[400404709,1767517263684,-191.64757224,0.00017999,2]
[400404710,1767517263711,-38.01669667,0.00017999,2]
[400404711,1767517263798,-3478.23754886,0.000179,2]
[400404712,1767517263829,-461.98330333,0.00017999,2]
[400404713,1767517263855,-500.0,0.00017999,2]
[400404714,1767517263881,-259.94132505,0.00017999,2]
[400404715,1767517263911,-385.97454992,0.00017999,2]
[400404716,1767517263938,-500.0,0.00017999,2]
[400404717,1767517263966,-500.0,0.00017999,2]
[400404718,1767517263992,-508.25738517,0.00017999,2]
[400404719,1767517264018,-500.0,0.00017999,2]
[400404720,1767517264044,-597.23624248,0.00017999,2]
[400404721,1767517264069,-500.0,0.00017999,2]
[400404722,1767517264095,-467.6707253,0.00017999,2]
[400404723,1767517264120,-1122.0,0.00018,2]
[400404724,1767517264147,-220142.69891989,0.00018,2]
[400404725,1767517264192,10000.01,0.00017699,2]
[400404726,1767517264235,-229924.0,0.00017699,2]
[400404727,1767517264317,-229924.0,0.00017699,2]
[400404728,1767517264392,-229924.0,0.00017699,2]
[400404729,1767517265157,-229924.0,0.00017699,2]
[400404730,1767517266533,-70303.99,0.00017699,2]
[400404731,1767517266559,-195.0,0.00017798,2]
[400404732,1767517266584,-264.88999615,0.00017897,2]
[400404733,1767517266612,-633.53576863,0.000179,2]
[400404734,1767517266638,-279.77082708,0.000179,2]
[400404735,1767517266664,-500.0,0.00017999,2]
[400404736,1767517266691,-500.0,0.00017999,2]
[400404737,1767517266716,-553.78898154,0.00017999,2]
[400404738,1767517266742,-156693.0244266,0.00018,2]
[400404739,1767517267841,-229924.0,0.00018,2]
[400404740,1767517268730,-229924.0,0.00018,2]
[400404741,1767517269944,-229924.0,0.00018,2]
[400404742,1767517313068,-200.0,0.00017039,2]
[400404743,1767517313102,-207.4,0.00017039,2]
[400404744,1767517313133,-215.0738,0.00017039,2]
[400404745,1767517313162,-318.48492014,0.00017039,2]
[400404746,1767517313194,-1437.28,0.00017637,2]
[400404747,1767517313223,-1178.78,0.0001766,2]
[400404748,1767517321940,-4853.09469,0.0001782,2]
[400404749,1767517327224,-293.82062,0.0001782,2]
[400404750,1767517327250,-5146.91532,0.0001782,2]
[400404751,1767517327275,-5146.91532,0.0001783,2]
[400404752,1767517327317,-5015.3658568,0.00017839,2]
[400404753,1767517327346,-5146.91532,0.0001786,2]
[400404754,1767517327372,-5146.91532,0.0001788,2]
[400404755,1767517327406,-500.0,0.00017897,2]
[400404756,1767517327437,-338.01401099,0.00017899,2]
[400404757,1767517327465,-350.0,0.00017899,2]
[400404758,1767517327491,-1426.95072483,0.000179,2]
[400404759,1767517327520,-1719.72335841,0.000179,2]
[400404760,1767517327549,-176.45502805,0.000179,2]
[400404761,1767517327578,-5146.91531,0.0001791,2]
[400404762,1767517327605,-151.0,0.00017997,2]
[400404763,1767517327633,-1887.45,0.00017999,2]
[400404764,1767517327662,-247.262,0.00017999,2]
[400404765,1767517327690,-1219.0,0.00018,2]
[400404766,1767517327726,-10940.38181092,0.00018,2]
[400404767,1767517328453,-50000.0,0.00018,2]
[400404768,1767517329552,-50000.0,0.00018,2]
[400404769,1767517330658,-50000.0,0.00018,2]
[400404772,1767517428819,259.94,0.00043664,120]
[400404773,1767517433172,1150.0,0.00043664,30]
[400404774,1767517443866,-3240.0,0.00017323,2]
[400404775,1767517443897,-600.0,0.00017509,2]
[400404776,1767517443926,-151.0,0.00017696,2]
[400404777,1767517443959,-818.01,0.00017698,2]
[400404781,1767517453416,-195.0,0.00017509,2]
[400404782,1767517453447,-381.99,0.00017698,2]
[400404784,1767517518488,213.398,0.00016939,2]
[400404785,1767517560755,-151.0,0.00017696,2]
[400404786,1767517560786,-1200.0,0.00017698,2]
[400404787,1767517560815,-300.0,0.00017698,2]
[400404788,1767517560846,-600.0,0.00017698,2]
[400404789,1767517561879,550.0,0.00017698,2]
[400404790,1767517574347,-389.57650566,0.00017699,2]
[400404791,1767517576306,-181.49064984,0.00017699,2]
[400404792,1767517579491,-232.34431542,0.00017699,2]
[400404793,1767517582056,-203.69662069,0.00017699,2]
[400404794,1767517586074,-156.21597287,0.00017699,2]
[400404795,1767517589767,-350.07171593,0.00017699,2]
[400404796,1767517592943,-189.4833,0.00017699,2]
[400404797,1767517595151,-267.38288382,0.00017699,2]
[400404798,1767517598605,-257.79369329,0.00017699,2]
[400404799,1767517600455,-202.6548135,0.00017699,2]
[400404800,1767517604903,-202.17071259,0.00017699,2]
[400404801,1767517608765,500.0,0.00017698,2]
[400404802,1767517608811,207.74016774,0.00017698,2]
[400404803,1767517609803,-255.77136157,0.00017699,2]
[400404804,1767517615654,-241.65238321,0.00017699,2]
[400404805,1767517618381,-170.14894091,0.00017699,2]
[400404806,1767517619904,-199.98509773,0.00017699,2]
[400404807,1767517620056,607.35958267,0.00017698,2]
[400404808,1767517622092,-154.09944903,0.00017699,2]
[400404809,1767517624763,-196.62354232,0.00017699,2]
[400404810,1767517627599,-182.99712902,0.00017699,2]
[400404811,1767517628496,-195.24862106,0.0002,20]
[400404812,1767517631090,-161.31534797,0.00017699,2]
[400404813,1767517634141,500.0,0.00017698,2]
[400404814,1767517634192,500.0,0.00017698,2]
[400404815,1767517634249,430.4951992,0.00017698,2]
[400404816,1767517634303,500.0,0.00017698,2]
[400404817,1767517634830,2000.0,0.00043664,30]
[400404818,1767517635986,-400.2857465,0.00017699,2]
[400404819,1767517638223,2000.0,0.00043664,30]
[400404820,1767517639896,-207.4,0.00017699,2]
[400404821,1767517640203,2000.0,0.00043664,30]
[400404822,1767517640925,2000.0,0.00043664,30]
[400404823,1767517642534,-365.66748255,0.00017699,2]
[400404824,1767517644134,-1051.73677428,0.00017699,2]
[400404825,1767517644485,-188.81615301,0.00017699,2]
[400404826,1767517644835,513.85449138,0.00017698,2]
[400404827,1767517646233,2191.0,0.00043664,30]
[400404828,1767517648010,248.33144872,0.00017698,2]
[400404829,1767517649284,500.0,0.00017698,2]
[400404830,1767517649322,154.09944903,0.00017698,2]
[400404831,1767517649948,-300.98782242,0.00017699,2]
[400404832,1767517650046,-28704.75137894,0.00017699,2]
[400404833,1767517654439,-387.81249801,0.00017699,2]
[400404834,1767517657854,-451.59451189,0.00017699,2]
[400404835,1767517658702,286.12966126,0.00016438,2]
[400404836,1767517658876,3990.00033874,0.00016438,2]
[400404837,1767517660599,-179.07657441,0.00017699,2]
[400404838,1767517661796,554.48363556,0.00017698,2]
[400404839,1767517663149,-263.72438278,0.00017699,2]
[400404840,1767517665646,-345.3593635,0.00017699,2]
[400404841,1767517668354,-261.43882514,0.00017699,2]
[400404844,1767517670511,-300.0,0.00017699,2]
[400404845,1767517674013,-300.0,0.00017699,2]
[400404846,1767517674464,500.0,0.00017698,2]
[400404847,1767517674515,500.0,0.00017698,2]
[400404849,1767517674571,327.18534616,0.00017698,2]
[400404850,1767517676468,-281.49733174,0.00017699,2]
[400404854,1767517680934,-435.80607334,0.00017699,2]
[400404855,1767517681226,300.0,0.00017698,2]
[400404856,1767517682846,-180.32884553,0.00017699,2]
[400404860,1767517685304,-202.37378735,0.00017699,2]
[400404862,1767517687275,-412.13060753,0.00017699,2]
[400404864,1767517689718,-163.14635088,0.00017699,2]
[400404866,1767517692254,-487.81479577,0.00017699,2]
[400404868,1767517693652,-226.25985155,0.00017699,2]
[400404869,1767517693999,1200.0,0.00017698,2]
[400404870,1767517695201,-177.00021117,0.00017699,2]
[400404874,1767517699529,-203.86,0.00017699,2]
[400404875,1767517704111,1019.0,0.00043664,30]
[400404887,1767517709914,2628.34067954,0.00017607,2]
[400404888,1767517709938,2278.11126769,0.00017607,2]
[400404889,1767517714935,4906.45194723,0.0001764,2]
[400404890,1767517720024,2815.44678508,0.00017672,2]
[400404891,1767517723801,-2091.00516215,0.00017672,2]
[400404893,1767517753671,1000.0,0.00043663,30]
[400404894,1767517757297,1301.0,0.00043663,30]
[400404916,1767517831696,-294.0,0.0001706,2]
[400404917,1767517831707,-300.0,0.0001706,2]
[400404918,1767517831717,-1000.0,0.0001706,2]
[400404919,1767517831728,-500.0,0.00017598,2]
[400404920,1767517831738,-245.23571831,0.00017605,2]
[400404921,1767517831751,-590.20062203,0.00017605,2]
[400404922,1767517831763,-494.00110801,0.00017605,2]
[400404923,1767517831774,-81.74889199,0.00017638,2]
[400404924,1767517831786,-292.97700002,0.00017638,2]
[400404925,1767517831797,-501.00324206,0.00017638,2]
[400404926,1767517831868,-47.61893343,0.00017638,2]
[400404927,1767517831880,-406.08938082,0.00017638,2]
[400404928,1767517831890,-1329.43744832,0.00017671,2]
[400404929,1767517831900,-113.60808232,0.00017697,2]
[400404930,1767517831912,-186.39191768,0.00017697,2]
[400404931,1767517831921,-1200.0,0.00017697,2]
[400404932,1767517831930,-202.84913396,0.00017698,2]
[400404933,1767517831940,-500.0,0.00017698,2]
[400404934,1767517831950,-500.0,0.00017698,2]
[400404935,1767517831961,-500.0,0.00017698,2]
[400404936,1767517831970,-500.0,0.00017698,2]
[400404937,1767517831980,-500.0,0.00017698,2]
[400404938,1767517831989,-500.0,0.00017698,2]
[400404939,1767517831999,-500.0,0.00017698,2]
[400404940,1767517832009,-500.0,0.00017698,2]
[400404941,1767517832019,-500.0,0.00017698,2]
[400404943,1767517832028,-500.0,0.00017698,2]
[400404945,1767517832038,-97.50476093,0.00017698,2]
[400404948,1767517832050,-402.49523907,0.00017698,2]
[400404950,1767517832061,-500.0,0.00017698,2]
[400404951,1767517832071,-185.6056266,0.00017698,2]
[400404955,1767517832085,-314.3943734,0.00017698,2]
[400404958,1767517832095,-375.5309078,0.00017698,2]
[400404961,1767517832106,-124.4690922,0.00017698,2]
[400404963,1767517832116,-500.0,0.00017698,2]
[400404964,1767517832127,-500.0,0.00017698,2]
[400404965,1767517832136,-500.0,0.00017698,2]
[400404966,1767517832145,-407.29195703,0.00017698,2]
[400404967,1767517832156,-92.70804297,0.00017698,2]
[400404968,1767517832166,-500.0,0.00017698,2]
[400404969,1767517832175,-500.0,0.00017698,2]
[400404970,1767517832185,-242.12794517,0.00017698,2]
[400404971,1767517832197,-257.87205483,0.00017698,2]
[400404972,1767517832207,-500.0,0.00017698,2]
[400404973,1767517832216,-130.27415745,0.00017698,2]
[400404974,1767517832228,-369.72584255,0.00017698,2]
[400404975,1767517832238,-500.0,0.00017698,2]
[400404977,1767517832248,-500.0,0.00017698,2]
[400404979,1767517832257,-500.0,0.00017698,2]
[400404981,1767517832266,-542.87645649,0.00017698,2]
[400404983,1767517832275,-500.0,0.00017698,2]
[400404985,1767517832284,-500.0,0.00017698,2]
[400404987,1767517832293,-500.0,0.00017698,2]
[400404989,1767517832303,-500.0,0.00017698,2]
[400404991,1767517832312,-500.0,0.00017698,2]
[400404993,1767517832322,-500.0,0.00017698,2]
[400404995,1767517832332,-500.0,0.00017698,2]
[400404997,1767517832342,-360.49770096,0.00017698,2]
[400405048,1767517837808,-139.50229904,0.00017698,2]
[400405049,1767517837818,-500.0,0.00017698,2]
[400405050,1767517837828,-200.0,0.00017698,2]
[400405051,1767517837842,-550.0,0.00017698,2]
[400405052,1767517837852,-300.0,0.00017698,2]
[400405053,1767517837861,-1652.04401499,0.00017699,2]
[400405054,1767517837874,-52830.2209683,0.00017699,2]
[400405055,1767517837886,-400.0,0.00017699,2]
[400405056,1767517837898,-638.55537377,0.00017699,2]
[400405057,1767517837920,-349.43400439,0.00017699,2]
[400405058,1767517837932,-6769.46469655,0.00017699,2]
[400405059,1767517837943,-373.38091558,0.00017699,2]
[400405060,1767517837954,-90428.14720612,0.00017699,2]
[400405061,1767517837977,-82717.07082861,0.00017699,2]
[400405082,1767517837991,-1137.19763816,0.00017699,2]
[400405083,1767517838319,-4071.55773437,0.00017699,2]
[400405089,1767517839881,-965.92,0.00017699,2]
[400405095,1767517840606,-68512.5,0.00017699,2]
[400405096,1767517840619,-6752.09925,0.00017699,2]
[400405097,1767517840631,-641728.0635655,0.00017699,2]
[400405098,1767517840641,-1329.43744832,0.00017703,2]
[400405099,1767517840651,-4906.45194723,0.00017705,2]
[400405100,1767517840662,-250.0,0.00017707,2]
[400405101,1767517840672,-49322.8127686,0.00017708,2]
[400405102,1767517840682,-6307.5506237,0.00017708,2]
[400405103,1767517840692,-2500.0,0.00017714,2]
[400405104,1767517840702,-300.0,0.0001773,2]
[400405105,1767517840712,-1329.43744832,0.00017736,2]
[400405106,1767517840722,-4906.45194723,0.00017737,2]
[400405107,1767517840734,-600.0,0.0001776,2]
[400405108,1767517840743,-600.0,0.0001776,2]
[400405109,1767517840754,-1329.43744832,0.00017769,2]
[400405110,1767517840767,-4906.45194723,0.0001777,2]
[400405111,1767517840777,-601.87233082,0.000178,2]
[400405112,1767517840787,-1329.43744832,0.00017802,2]
[400405113,1767517840797,-4906.45194723,0.00017802,2]
[400405114,1767517840806,-1329.43744832,0.00017834,2]
[400405115,1767517840816,-4906.45194723,0.00017835,2]
[400405116,1767517840825,-14105.8224912,0.00017865,2]
[400405117,1767517840835,-7741.8000569,0.00017865,2]
[400405118,1767517840845,-983.0,0.00017866,2]
[400405119,1767517840855,-1329.43744832,0.00017867,2]
[400405120,1767517840865,-4906.45194723,0.00017867,2]
[400405121,1767517840874,-245.2214448,0.00017889,2]
[400405122,1767517840884,-4906.45194723,0.000179,2]
[400405123,1767517840894,-500.0,0.000179,2]
[400405124,1767517840904,-500.0,0.000179,2]
[400405125,1767517840914,-500.0,0.000179,2]
[400405126,1767517840923,-151.0,0.00017989,2]
[400405127,1767517840934,-151.0,0.00017989,2]
[400405128,1767517840943,-151.0,0.00017989,2]
[400405129,1767517840953,-790.64,0.00017999,2]
[400405130,1767517840963,-500.0,0.00017999,2]
[400405131,1767517840973,-300.0,0.00017999,2]
[400405132,1767517840983,-500.0,0.00017999,2]
[400405133,1767517840992,-500.0,0.00017999,2]
[400405134,1767517841001,-500.0,0.00017999,2]
[400405135,1767517841011,-500.0,0.00017999,2]
[400405136,1767517841021,-500.0,0.00017999,2]
[400405137,1767517841031,-500.0,0.00017999,2]
[400405138,1767517841040,-500.0,0.00017999,2]
[400405139,1767517841050,-500.0,0.00017999,2]
[400405140,1767517841059,-360.43011795,0.00017999,2]
[400405141,1767517841069,-501.38501556,0.00017999,2]
[400405142,1767517841079,-4525007.31636347,0.00018,2]
[400405159,1767517845538,-1329.43744832,0.000179,2]
[400405160,1767517845548,-500.0,0.00017999,2]
[400405161,1767517845558,-2355.74321194,0.00018,2]
[400405162,1767517845605,-125.29537078,0.00018,2]
[400405163,1767517845617,-2386.97270748,0.00018,2]
[400405164,1767517845628,-26740.53155755,0.00018,2]
[400405166,1767517845916,-7415.94707886,0.00018,2]
[400405167,1767517846024,-332.818322,0.00018,2]
[400405188,1767517930811,151.0,0.00043663,30]
[400405189,1767517933423,322.6107,0.00043663,30]
[400405204,1767518098437,-1608.839,0.00017247,2]
[400405205,1767518098471,-197.809,0.00017247,2]
[400405206,1767518098530,-6238.54771494,0.00017248,2]
[400405210,1767518103744,-300.0,0.00017247,2]
[400405211,1767518103775,-300.0,0.00017247,2]
[400405212,1767518103806,-1200.0,0.00017247,2]
[400405213,1767518103837,-550.0,0.00017247,2]
[400405214,1767518103920,-5300.01,0.00017248,2]
[400405223,1767518141846,299.66958491,0.00015187,2]
[400405224,1767518149267,-408.311299,0.00017162,2]
[400405225,1767518149327,-8883.71781709,0.00017248,2]
[400405226,1767518153048,-10000.01,0.00017248,2]
[400405227,1767518189409,151.0,0.00043694,65]
[400405228,1767518189900,151.0,0.00043694,65]
[400405229,1767518190203,151.0,0.00043694,65]
[400405230,1767518190495,151.0,0.00043694,65]
[400405231,1767518190777,151.0,0.00043694,65]
[400405232,1767518191073,245.0,0.00043694,65]
[400405234,1767518199698,999.0,0.00016769,3]
[400405235,1767518210698,205.0570174,0.00043694,120]
[400405236,1767518211355,205.0570174,0.00043694,120]
[400405241,1767518234958,189.59465929,0.00043694,120]
[400405246,1767518266407,250.0,0.00043694,120]
[400405248,1767518281575,848.23,8.368e-05,2]
[400405249,1767518281790,848.23,8.808e-05,2]
[400405250,1767518281993,848.23,9.249e-05,2]
[400405251,1767518282187,848.23,9.689e-05,2]
[400405252,1767518282389,848.23,0.00010129,2]
[400405253,1767518282787,848.23,0.0001057,2]
[400405254,1767518283001,848.23,0.0001101,2]
[400405255,1767518283227,848.23,0.00011451,2]
[400405258,1767518283440,848.23,0.00011891,2]
[400405259,1767518283618,848.23,0.00012331,2]
[400405260,1767518283863,848.23,0.00012772,2]
[400405261,1767518284029,848.23,0.00013212,2]
[400405262,1767518284220,848.23,0.00013653,2]
[400405263,1767518284412,848.23,0.00014093,2]
[400405264,1767518284808,848.23,0.00014533,2]
[400405265,1767518285009,848.23,0.00014974,2]
[400405266,1767518285221,848.23,0.00015414,2]
[400405267,1767518285615,848.23,0.00015855,2]
[400405268,1767518285832,848.23,0.00016295,2]
[400405269,1767518286042,848.23,0.00016736,2]
[400405272,1767518306551,-1354.770483,0.00017074,2]
[400405273,1767518306581,-245.2214448,0.00017161,2]
[400405274,1767518306614,-2500.0,0.00017172,2]
[400405275,1767518306644,-600.0,0.00017182,2]
[400405276,1767518306672,-300.0,0.00017204,2]
[400405277,1767518306758,-0.0261444,0.00017209,2]
[400405278,1767518307703,708.92,0.00016627,2]
[400405279,1767518316196,-2499.9738556,0.00017209,2]